[Event "CZE-ch Open 2019"]
[Site "Ostrava"]
[Date "2019.05.02"]
[Round "6.25"]
[White "Ockay, Tomas"]
[Black "Jedlicka, Ales"]
[Result "1-0"]
[ECO "A05"]
[WhiteElo "2131"]
[BlackElo "2236"]
[Annotator "NA"]
[PlyCount "97"]
[EventDate "2019.04.27"]
[EventType "swiss"]
[EventCountry "CZE"]
[SourceTitle "playchess.com"]
[Source "ChessBase"]
[SourceQuality "1"]
[TimeControl "40/5400+30:1800+30"]

1. Nf3 {[%emt 0:00:00]} Nf6 {[%emt 0:00:00]} 2. b3 {[%emt 0:00:00]} g6 {[%emt 0:00:08]} 3. Bb2 {[%emt 0:00:00]} Bg7 {[%emt 0:00:12]} 4. g3 {[%emt 0:00:29]} d6 {[%emt 0:00:20]} 5. d4 {[%emt 0:00:06]} O-O {[%emt 0:00:18]} 6. Bg2 {[%emt 0:00:02]} c5 {[%emt 0:00:30]} 7. O-O {[%emt 0:00:21]} cxd4 {[%emt 0:00:24]} 8. Nxd4 {[%emt 0:00:12]} d5 {[%emt 0:00:21]} 9. c4 {[%emt 0:05:29]} dxc4 {[%emt 0:00:33]} 10. bxc4 {[%emt 0:00:12]} Qb6 {[%emt 0:00:18]} 11. Qb3 {[%emt 0:00:33]} Nfd7 {[%emt 0:01:32]} 12. Rd1 {[%emt 0:10:31]} Na6 {[%emt 0:00:49]} 13. e3 {[%emt 0:27:51]} Nac5 {[%emt 0:01:03]} 14. Qc2 {[%emt 0:00:29]} Ne5 {[%emt 0:01:14]} 15. Nd2 {[%emt 0:03:02]} Bd7 {[%emt 0:04:13]} 16. Ba3 {[%emt 0:02:07]} Rac8 {[%emt 0:03:52]} 17. Rab1 {[%emt 0:00:44]} Qa6 {[%emt 0:03:14]} 18. Bxc5 {[%emt 0:00:26]} Rxc5 {[%emt 0:00:42]} 19. Bxb7 {[%emt 0:00:17]} Qa4 {[%emt 0:00:41]} 20. Be4 {[%emt 0:15:22]} Nxc4 {[%emt 0:07:16]} 21. Nxc4 {[%emt 0:03:24]} Rxc4 {[%emt 0:00:53]} 22. Qxa4 {[%emt 0:00:34]} Bxa4 {[%emt 0:01:29]} 23. Rdc1 {[%emt 0:01:14]} Rxc1+ {[%emt 0:03:52]} 24. Rxc1 {[%emt 0:00:05]} Bxd4 {[%emt 0:00:25]} 25. exd4 {[%emt 0:00:04]} Rd8 {[%emt 0:01:19]} 26. d5 {[%emt 0:00:43]} Rd7 {[%emt 0:02:45]} 27. Rc5 {[%emt 0:01:36]} Kg7 {[%emt 0:00:27]} 28. Ra5 {[%emt 0:01:12]} Bd1 {[%emt 0:00:20]} 29. f4 {[%emt 0:01:01]} Rc7 {[%emt 0:01:38]} 30. Kf2 {[%emt 0:09:15]} f5 {[%emt 0:08:34]} 31. Bd3 {[%emt 0:00:10]} Rd7 {[%emt 0:08:59]} 32. Ke3 {[%emt 0:00:20]} h6 {[%emt 0:01:22]} 33. h4 {[%emt 0:02:43]} Bg4 {[%emt 0:01:10]} 34. Bc4 {[%emt 0:02:06]} Bh3 {[%emt 0:05:38]} 35. Ra6 {[%emt 0:01:15]} Rc7 {[%emt 0:03:25]} 36. Rc6 {[%emt 0:00:39]} Rb7 {[%emt 0:00:32]} 37. Kd4 {[%emt 0:00:32]} Bg2 {[%emt 0:02:53]} 38. Ke5 {[%emt 0:02:32]} a5 {[%emt 0:11:52]} 39. Ke6 {[%emt 0:03:53]} Bf3 {[%emt 0:05:38]} 40. Rc8 {[%emt 0:01:34]} a4 {[%emt 0:08:25]} 41. Re8 {[%emt 0:30:40]} Rb4 {[%emt 0:37:32]} 42. Rxe7+ {[%emt 0:00:28]} Kf8 {[%emt 0:00:11]} 43. Rc7 {[%emt 0:00:15]} a3 {[%emt 0:00:00]} 44. d6 {[%emt 0:00:00]} Rb6 {[%emt 0:00:00]} 45. Rf7+ {[%emt 0:00:00]} Kg8 {[%emt 0:00:00]} 46. Ke5 {[%emt 0:00:00]} Rb4 {[%emt 0:00:00]} 47. Be6 {[%emt 0:00:00]} Rb5+ {[%emt 0:00:00]} 48. Kf6 {[%emt 0:00:00]} Bd5 {[%emt 0:00:00]} 49. d7 {[%emt 0:00:00]} 1-0

[Event "CZE-ch Open 2019"]
[Site "Ostrava"]
[Date "2019.05.02"]
[Round "6.26"]
[White "Kana, Pavel"]
[Black "Kanakova, Natalie"]
[Result "1/2-1/2"]
[ECO "B30"]
[WhiteElo "2013"]
[BlackElo "2202"]
[Annotator "NA"]
[PlyCount "81"]
[EventDate "2019.04.27"]
[EventType "swiss"]
[EventCountry "CZE"]
[SourceTitle "playchess.com"]
[Source "ChessBase"]
[SourceQuality "1"]
[TimeControl "40/5400+30:1800+30"]

1. e4 {[%emt 0:01:04]} c5 {[%emt 0:00:00]} 2. Nf3 {[%emt 0:00:14]} Nc6 {[%emt 0:00:00]} 3. Bb5 {[%emt 0:00:28]} Nf6 {[%emt 0:01:07]} 4. Nc3 {[%emt 0:04:35]} g6 {[%emt 0:01:46]} 5. O-O {[%emt 0:08:03]} Bg7 {[%emt 0:00:40]} 6. Re1 {[%emt 0:03:34]} O-O {[%emt 0:04:09]} 7. e5 {[%emt 0:10:39]} Ng4 {[%emt 0:04:42]} 8. Bxc6 {[%emt 0:02:53]} dxc6 {[%emt 0:00:19]} 9. h3 {[%emt 0:01:41]} Nh6 {[%emt 0:00:05]} 10. g4 {[%emt 0:05:21]} Qc7 {[%emt 0:16:12]} 11. d3 {[%emt 0:02:42]} f5 {[%emt 0:03:26]} 12. g5 {[%emt 0:14:32]} Nf7 {[%emt 0:00:06]} 13. Bf4 {[%emt 0:01:20]} Nd8 {[%emt 0:01:47]} 14. Qd2 {[%emt 0:06:10]} Ne6 {[%emt 0:01:24]} 15. Qe3 {[%emt 0:02:31]} b6 {[%emt 0:06:37]} 16. Kg2 {[%emt 0:04:31]} Bb7 {[%emt 0:09:07]} 17. Kg3 {[%emt 0:01:06]} Qd7 {[%emt 0:10:50]} 18. Rac1 {[%emt 0:06:08]} h5 {[%emt 0:05:23]} 19. gxh6 {[%emt 0:04:25]} Bxh6 {[%emt 0:00:16]} 20. Bxh6 {[%emt 0:01:56]} f4+ {[%emt 0:00:10]} 21. Bxf4 {[%emt 0:00:33]} Nxf4 {[%emt 0:00:05]} 22. e6 {[%emt 0:02:28]} Qd6 {[%emt 0:01:10]} 23. Qe5 {[%emt 0:02:59]} Qxe5 {[%emt 0:01:03]} 24. Rxe5 {[%emt 0:02:21]} Rf6 {[%emt 0:02:36]} 25. Ng5 {[%emt 0:05:36]} Raf8 {[%emt 0:06:14]} 26. f3 {[%emt 0:00:39]} Kg7 {[%emt 0:03:42]} 27. Rce1 {[%emt 0:00:25]} Bc8 {[%emt 0:01:23]} 28. Nce4 {[%emt 0:01:08]} Rf5 {[%emt 0:04:45]} 29. Nf2 {[%emt 0:01:34]} Nh5+ {[%emt 0:02:18]} 30. Kg2 {[%emt 0:00:10]} Rxe5 {[%emt 0:01:58]} 31. Rxe5 {[%emt 0:00:02]} Rf5 {[%emt 0:04:39]} 32. Ng4 {[%emt 0:02:09]} Rxe5 {[%emt 0:00:49]} 33. Nxe5 {[%emt 0:00:01]} Kf6 {[%emt 0:00:14]} 34. Nef7 {[%emt 0:01:17]} Nf4+ {[%emt 0:01:16]} 35. Kg3 {[%emt 0:00:56]} Nxe6 {[%emt 0:00:21]} 36. f4 {[%emt 0:00:50]} Nd4 {[%emt 0:05:10]} 37. c3 {[%emt 0:00:36]} Nf5+ {[%emt 0:01:26]} 38. Kf3 {[%emt 0:00:13]} Nh4+ {[%emt 0:01:04]} 39. Kg3 {[%emt 0:00:34]} Nf5+ {[%emt 0:00:06]} 40. Kf3 {[%emt 0:00:01]} Nh4+ {[%emt 0:01:03]} 41. Ke4 {Ke5+} 1/2-1/2

[Event "CZE-ch Open 2019"]
[Site "Ostrava"]
[Date "2019.05.02"]
[Round "6.27"]
[White "Vorisek, Jakub"]
[Black "Vesselovsky, Serguei"]
[Result "1/2-1/2"]
[ECO "B70"]
[WhiteElo "1991"]
[BlackElo "2335"]
[Annotator "NA"]
[PlyCount "60"]
[EventDate "2019.04.27"]
[EventType "swiss"]
[EventCountry "CZE"]
[SourceTitle "playchess.com"]
[Source "ChessBase"]
[SourceQuality "1"]
[TimeControl "40/5400+30:1800+30"]

1. e4 {[%emt 0:00:00]} c5 {[%emt 0:00:00]} 2. Nf3 {[%emt 0:00:00]} d6 {[%emt 0:00:00]} 3. d4 {[%emt 0:00:00]} cxd4 {[%emt 0:00:00]} 4. Nxd4 {[%emt 0:00:06]} Nf6 {[%emt 0:00:00]} 5. Nc3 {[%emt 0:00:14]} g6 {[%emt 0:00:05]} 6. Be2 {[%emt 0:00:32]} Bg7 {[%emt 0:00:08]} 7. O-O {[%emt 0:00:17]} O-O {[%emt 0:00:07]} 8. Bg5 {[%emt 0:01:47]} Nbd7 {[%emt 0:00:14]} 9. Kh1 {[%emt 0:07:43]} Nc5 {[%emt 0:06:30]} 10. f3 {[%emt 0:05:00]} Bd7 {[%emt 0:03:28]} 11. Qd2 {[%emt 0:03:36]} Re8 {[%emt 0:01:15]} 12. Rad1 {[%emt 0:04:28]} Rc8 {[%emt 0:13:05]} 13. Nd5 {[%emt 0:09:28]} Nxd5 {[%emt 0:09:01]} 14. exd5 {[%emt 0:00:07]} Qb6 {[%emt 0:15:29]} 15. b3 {[%emt 0:07:18]} e5 {[%emt 0:11:19]} 16. dxe6 {[%emt 0:01:19]} Nxe6 {[%emt 0:00:19]} 17. Nxe6 {[%emt 0:04:51]} Bxe6 {[%emt 0:00:24]} 18. c4 {[%emt 0:06:57]} d5 {[%emt 0:02:11]} 19. Be3 {[%emt 0:05:48]} Qc7 {[%emt 0:02:53]} 20. cxd5 {[%emt 0:02:48]} Bxd5 {[%emt 0:03:51]} 21. Qxd5 {[%emt 0:02:09]} Rxe3 {[%emt 0:00:27]} 22. Bc4 {[%emt 0:00:14]} Re5 {[%emt 0:13:00]} 23. Qd7 {[%emt 0:02:50]} Re7 {[%emt 0:01:44]} 24. Qxc7 {[%emt 0:01:47]} Rexc7 {[%emt 0:06:17]} 25. Rd2 {[%emt 0:01:15]} Bf6 {[%emt 0:01:17]} 26. Rfd1 {[%emt 0:00:47]} Re8 {[%emt 0:00:41]} 27. g3 {[%emt 0:01:19]} Kg7 {[%emt 0:00:18]} 28. Rd7 {[%emt 0:00:31]} Rxd7 {[%emt 0:00:13]} 29. Rxd7 {[%emt 0:00:07]} Re7 {[%emt 0:00:02]} 30. Rxe7 {[%emt 0:00:57]} Bxe7 {[%emt 0:00:02]} 1/2-1/2

[Event "CZE-ch Open 2019"]
[Site "Ostrava"]
[Date "2019.05.02"]
[Round "6.28"]
[White "Jurek, Josef"]
[Black "Taus, Martin"]
[Result "0-1"]
[ECO "A05"]
[WhiteElo "2269"]
[BlackElo "2104"]
[Annotator "NA"]
[PlyCount "86"]
[EventDate "2019.04.27"]
[EventType "swiss"]
[EventCountry "CZE"]
[SourceTitle "playchess.com"]
[Source "ChessBase"]
[SourceQuality "1"]
[TimeControl "40/5400+30:1800+30"]

1. Nf3 Nf6 2. c4 d6 3. d4 Bg4 4. Qb3 Qc8 5. h3 Bh5 6. Nc3 Nc6 7. d5 Bxf3 8. gxf3 Nd4 9. Qd1 e5 10. e3 Nf5 11. e4 Nh4 12. f4 Be7 13. f5 h6 14. Rg1 g6 15. fxg6 fxg6 16. f4 exf4 17. Bxf4 Nxe4 18. Bd3 Nxc3 19. bxc3 Qxh3 20. Qa4+ Qd7 21. Qxd7+ Kxd7 22. O-O-O Raf8 23. Be3 g5 24. Bf1 Rf3 25. Rd3 g4 26. Bd4 Rg8 27. Be2 Rxd3 28. Bxd3 g3 29. Be4 Rg4 30. Bd3 g2 31. Bf2 Rg7 32. Bxh4 Bxh4 33. Be4 Rg3 34. Rxg2 Rxc3+ 35. Kd2 Rxc4 36. Rg7+ Ke8 37. Kd3 Rc5 38. Rh7 Bg5 39. Bg6+ Kf8 40. Kd4 Bf6+ 41. Ke4 Bg7 42. Bf5 Kg8 43. Kf4 Rc4+ 0-1

[Event "CZE-ch Open 2019"]
[Site "Ostrava"]
[Date "2019.05.02"]
[Round "6.29"]
[White "Valencik, Jozef"]
[Black "Bulockin, Martin"]
[Result "1/2-1/2"]
[ECO "D00"]
[WhiteElo "2057"]
[BlackElo "2199"]
[Annotator "NA"]
[PlyCount "71"]
[EventDate "2019.04.27"]
[EventType "swiss"]
[EventCountry "CZE"]
[SourceTitle "playchess.com"]
[Source "ChessBase"]
[SourceQuality "1"]
[TimeControl "40/5400+30:1800+30"]

1. d4 {[%emt 0:00:00]} d5 {[%emt 0:00:12]} 2. Bf4 {[%emt 0:00:00]} c5 {[%emt 0:00:50]} 3. e3 {[%emt 0:00:38]} cxd4 {[%emt 0:01:30]} 4. exd4 {[%emt 0:00:27]} Nc6 {[%emt 0:00:04]} 5. c3 {[%emt 0:00:39]} Bf5 {[%emt 0:01:23]} 6. Qb3 {[%emt 0:03:11]} Qd7 {[%emt 0:02:18]} 7. Nf3 {[%emt 0:02:10]} a6 {[%emt 0:01:54]} 8. Nbd2 {[%emt 0:01:46]} e6 {[%emt 0:02:38]} 9. Nh4 {[%emt 0:02:51]} Nge7 {[%emt 0:06:21]} 10. Nxf5 {[%emt 0:04:54]} Nxf5 {[%emt 0:04:14]} 11. Bd3 {[%emt 0:00:34]} Bd6 {[%emt 0:00:59]} 12. Bxd6 {[%emt 0:02:44]} Nxd6 {[%emt 0:00:02]} 13. O-O {[%emt 0:03:12]} O-O {[%emt 0:01:51]} 14. Nf3 {[%emt 0:01:30]} f6 {[%emt 0:11:08]} 15. Qc2 {[%emt 0:02:52]} g6 {[%emt 0:01:50]} 16. Rae1 {[%emt 0:03:55]} Qf7 {[%emt 0:03:23]} 17. Re2 {[%emt 0:07:56]} Rac8 {[%emt 0:02:00]} 18. Qd2 {[%emt 0:01:04]} Rfe8 {[%emt 0:04:02]} 19. Rfe1 {[%emt 0:01:38]} Rcd8 {[%emt 0:09:37]} 20. Qh6 {[%emt 0:21:36]} Re7 {[%emt 0:10:15]} 21. h4 {[%emt 0:04:04]} Rde8 {[%emt 0:06:59]} 22. Nh2 {[%emt 0:04:16]} Qg7 {[%emt 0:03:28]} 23. Qd2 {[%emt 0:03:51]} Qf7 {[%emt 0:07:41]} 24. Ng4 {[%emt 0:01:00]} Kh8 {[%emt 0:04:58]} 25. Qf4 {[%emt 0:10:39]} Nf5 {[%emt 0:00:01]} 26. Bxf5 {[%emt 0:00:44]} exf5 {[%emt 0:02:42]} 27. Rxe7 {[%emt 0:00:39]} Rxe7 {[%emt 0:00:00]} 28. Rxe7 {[%emt 0:00:21]} Qxe7 {[%emt 0:00:01]} 29. Ne3 {[%emt 0:00:13]} Qd7 {[%emt 0:00:58]} 30. g4 {[%emt 0:02:49]} Ne7 {[%emt 0:01:53]} 31. gxf5 {[%emt 0:05:12]} Nxf5 {[%emt 0:01:30]} 32. Nxf5 {[%emt 0:00:14]} gxf5 {[%emt 0:00:01]} 33. h5 {[%emt 0:02:21]} Kg7 {[%emt 0:00:32]} 34. Kg2 {[%emt 0:01:59]} b5 {[%emt 0:01:58]} 35. Kg3 {[%emt 0:01:31]} Qe6 {[%emt 0:01:26]} 36. Qf3 {[%emt 0:02:11]} 1/2-1/2

[Event "CZE-ch Open 2019"]
[Site "Ostrava"]
[Date "2019.05.02"]
[Round "6.30"]
[White "Bartos, Jan"]
[Black "Vanek, Tomas"]
[Result "1/2-1/2"]
[ECO "A04"]
[WhiteElo "2178"]
[BlackElo "2095"]
[Annotator "NA"]
[PlyCount "61"]
[EventDate "2019.04.27"]
[EventType "swiss"]
[EventCountry "CZE"]
[SourceTitle "playchess.com"]
[Source "ChessBase"]
[SourceQuality "1"]
[TimeControl "40/5400+30:1800+30"]

1. Nf3 f5 2. d3 d6 3. e4 e5 4. Nc3 Nf6 5. exf5 Bxf5 6. d4 e4 7. Nh4 Qd7 8. Bg5 Be7 9. Bxf6 Bxf6 10. Nxf5 Qxf5 11. Be2 Nc6 12. Nb5 O-O 13. O-O Qd7 14. Bg4 Qe7 15. d5 Nd8 16. Nd4 Qe5 17. Ne6 Nxe6 18. Bxe6+ Kh8 19. c3 Bg5 20. Qe2 e3 21. fxe3 Qxe3+ 22. Qxe3 Bxe3+ 23. Kh1 g6 24. g3 Kg7 25. Kg2 Rxf1 26. Rxf1 Rf8 27. Rxf8 Kxf8 28. Kf3 Bc1 29. b3 Bb2 30. c4 Ke7 31. h4 1/2-1/2

[Event "CZE-ch Open 2019"]
[Site "Ostrava"]
[Date "2019.05.02"]
[Round "6.31"]
[White "Havelka, Ondrej"]
[Black "Pavlicek, Lukas"]
[Result "1-0"]
[ECO "D38"]
[WhiteElo "2156"]
[BlackElo "1963"]
[Annotator "NA"]
[PlyCount "53"]
[EventDate "2019.04.27"]
[EventType "swiss"]
[EventCountry "CZE"]
[SourceTitle "playchess.com"]
[Source "ChessBase"]
[SourceQuality "1"]
[TimeControl "40/5400+30:1800+30"]

1. Nf3 {[%emt 0:00:00]} Nf6 {[%emt 0:00:00]} 2. c4 {[%emt 0:00:23]} e6 {[%emt 0:00:00]} 3. Nc3 {[%emt 0:00:44]} d5 {[%emt 0:00:42]} 4. d4 {[%emt 0:00:11]} Bb4 {[%emt 0:01:34]} 5. Bg5 {[%emt 0:01:45]} h6 {[%emt 0:06:50]} 6. Bh4 {[%emt 0:01:02]} g5 {[%emt 0:04:41]} 7. Bg3 {[%emt 0:00:55]} Ne4 {[%emt 0:00:28]} 8. Rc1 {[%emt 0:00:32]} c6 {[%emt 0:05:28]} 9. Nd2 {[%emt 0:00:24]} Bxc3 {[%emt 0:01:53]} 10. bxc3 {[%emt 0:01:22]} Nxg3 {[%emt 0:02:04]} 11. hxg3 {[%emt 0:00:03]} Nd7 {[%emt 0:03:41]} 12. e4 {[%emt 0:00:23]} b6 {[%emt 0:02:25]} 13. Bd3 {[%emt 0:02:34]} Bb7 {[%emt 0:05:54]} 14. O-O {[%emt 0:01:07]} Nf6 {[%emt 0:07:02]} 15. cxd5 {[%emt 0:02:32]} cxd5 {[%emt 0:00:51]} 16. Bb5+ {[%emt 0:00:51]} Kf8 {[%emt 0:06:26]} 17. e5 {[%emt 0:02:02]} Nd7 {[%emt 0:02:02]} 18. f4 {[%emt 0:00:18]} a6 {[%emt 0:05:07]} 19. Bd3 {[%emt 0:00:53]} Qe7 {[%emt 0:10:15]} 20. Qh5 {[%emt 0:01:05]} Kg7 {[%emt 0:01:25]} 21. f5 {[%emt 0:05:44]} exf5 {[%emt 0:02:52]} 22. Rxf5 {[%emt 0:00:02]} Raf8 {[%emt 0:02:52]} 23. Rcf1 {[%emt 0:00:30]} Bc8 {[%emt 0:02:41]} 24. Bc2 {[%emt 0:15:26]} b5 {[%emt 0:04:17]} 25. R1f2 {[%emt 0:02:23]} Nb6 {[%emt 0:01:49]} 26. Rf6 {[%emt 0:00:17]} Be6 {[%emt 0:00:29]} 27. Rg6+ {[%emt 0:00:17]} 1-0

[Event "CZE-ch Open 2019"]
[Site "Ostrava"]
[Date "2019.05.02"]
[Round "6.32"]
[White "Holy, Filip"]
[Black "Koubova, Anna Marie"]
[Result "1/2-1/2"]
[ECO "B71"]
[WhiteElo "2096"]
[BlackElo "2005"]
[Annotator "NA"]
[PlyCount "67"]
[EventDate "2019.04.27"]
[EventType "swiss"]
[EventCountry "CZE"]
[SourceTitle "playchess.com"]
[Source "ChessBase"]
[SourceQuality "1"]
[TimeControl "40/5400+30:1800+30"]

1. e4 {[%emt 0:02:51]} c5 {[%emt 0:00:00]} 2. Nf3 {[%emt 0:00:05]} d6 {[%emt 0:00:00]} 3. d4 {[%emt 0:00:12]} cxd4 {[%emt 0:00:00]} 4. Nxd4 {[%emt 0:00:07]} Nf6 {[%emt 0:00:02]} 5. Nc3 {[%emt 0:00:03]} g6 {[%emt 0:00:12]} 6. f4 {[%emt 0:00:53]} Bg7 {[%emt 0:00:18]} 7. e5 {[%emt 0:00:11]} dxe5 {[%emt 0:18:00]} 8. fxe5 {[%emt 0:00:07]} Ng4 {[%emt 0:15:02]} 9. Bb5+ {[%emt 0:00:16]} Nc6 {[%emt 0:00:22]} 10. Nxc6 {[%emt 0:00:21]} Qxd1+ {[%emt 0:00:05]} 11. Nxd1 {[%emt 0:00:04]} a6 {[%emt 0:00:07]} 12. Ba4 {[%emt 0:05:47]} Bd7 {[%emt 0:00:12]} 13. Ne3 {[%emt 0:04:00]} Nxe3 {[%emt 0:02:44]} 14. Bxe3 {[%emt 0:00:10]} Bxc6 {[%emt 0:00:40]} 15. Bxc6+ {[%emt 0:01:19]} bxc6 {[%emt 0:00:05]} 16. Bf4 {[%emt 0:03:38]} Rb8 {[%emt 0:04:35]} 17. O-O-O {[%emt 0:00:50]} Rb4 {[%emt 0:13:37]} 18. g3 {[%emt 0:03:55]} g5 {[%emt 0:05:43]} 19. Bxg5 {[%emt 0:02:27]} Bxe5 {[%emt 0:00:09]} 20. c3 {[%emt 0:03:11]} Rb5 {[%emt 0:02:03]} 21. Be3 {[%emt 0:05:42]} O-O {[%emt 0:13:02]} 22. Rd2 {[%emt 0:03:11]} Rfb8 {[%emt 0:02:41]} 23. Rhd1 {[%emt 0:02:09]} Kg7 {[%emt 0:01:17]} 24. Bd4 {[%emt 0:04:14]} Bxd4 {[%emt 0:05:27]} 25. cxd4 {[%emt 0:00:04]} Rd8 {[%emt 0:00:12]} 26. Rc2 {[%emt 0:01:28]} Rd6 {[%emt 0:00:15]} 27. Rc4 {[%emt 0:01:44]} Rbd5 {[%emt 0:04:55]} 28. Re1 {[%emt 0:01:01]} e6 {[%emt 0:01:45]} 29. Re4 {[%emt 0:00:39]} Rf5 {[%emt 0:01:08]} 30. Ra4 {[%emt 0:04:02]} c5 {[%emt 0:02:31]} 31. dxc5 {[%emt 0:01:30]} Rxc5+ {[%emt 0:00:55]} 32. Rac4 {[%emt 0:01:33]} Rcd5 {[%emt 0:00:36]} 33. Rg4+ {[%emt 0:01:53]} Kf6 {[%emt 0:02:19]} 34. Rgf4+ {[%emt 0:00:32]} 1/2-1/2

[Event "CZE-ch Open 2019"]
[Site "Ostrava"]
[Date "2019.05.02"]
[Round "6.33"]
[White "Horak, Jan"]
[Black "Kolar, Stanislav"]
[Result "1/2-1/2"]
[ECO "A45"]
[WhiteElo "2158"]
[BlackElo "2091"]
[Annotator "NA"]
[PlyCount "78"]
[EventDate "2019.04.27"]
[EventType "swiss"]
[EventCountry "CZE"]
[SourceTitle "playchess.com"]
[Source "ChessBase"]
[SourceQuality "1"]
[TimeControl "40/5400+30:1800+30"]

1. d4 {[%emt 0:00:00]} Nf6 {[%emt 0:00:00]} 2. Nc3 {[%emt 0:00:00]} d5 {[%emt 0:00:13]} 3. Bf4 {[%emt 0:00:00]} Bf5 {[%emt 0:01:40]} 4. f3 {[%emt 0:00:02]} e6 {[%emt 0:00:29]} 5. g4 {[%emt 0:00:04]} Bg6 {[%emt 0:00:35]} 6. h4 {[%emt 0:00:11]} h5 {[%emt 0:01:15]} 7. g5 {[%emt 0:00:15]} Nfd7 {[%emt 0:00:28]} 8. a3 {[%emt 0:00:55]} Bd6 {[%emt 0:01:00]} 9. Nh3 {[%emt 0:03:50]} a6 {[%emt 0:01:37]} 10. e3 {[%emt 0:00:55]} Nc6 {[%emt 0:02:10]} 11. Bd3 {[%emt 0:02:03]} Bxd3 {[%emt 0:06:04]} 12. Qxd3 {[%emt 0:00:35]} Qe7 {[%emt 0:01:03]} 13. O-O-O {[%emt 0:08:51]} Nb6 {[%emt 0:06:02]} 14. Bxd6 {[%emt 0:05:14]} Qxd6 {[%emt 0:01:12]} 15. e4 {[%emt 0:05:17]} O-O-O {[%emt 0:01:40]} 16. e5 {[%emt 0:31:37]} Qe7 {[%emt 0:00:20]} 17. Nf4 {[%emt 0:02:24]} g6 {[%emt 0:00:47]} 18. Ng2 {[%emt 0:00:14]} Na5 {[%emt 0:02:50]} 19. Nb1 {[%emt 0:03:49]} Kb8 {[%emt 0:01:59]} 20. Nd2 {[%emt 0:00:30]} Rc8 {[%emt 0:01:06]} 21. Nb3 {[%emt 0:11:29]} Nxb3+ {[%emt 0:02:04]} 22. Qxb3 {[%emt 0:01:05]} Nc4 {[%emt 0:01:11]} 23. Ne3 {[%emt 0:00:17]} Nxe3 {[%emt 0:00:22]} 24. Qxe3 {[%emt 0:00:02]} c5 {[%emt 0:00:19]} 25. dxc5 {[%emt 0:00:40]} Qxc5 {[%emt 0:00:48]} 26. Qxc5 {[%emt 0:00:05]} Rxc5 {[%emt 0:00:08]} 27. Rd4 {[%emt 0:00:28]} Rhc8 {[%emt 0:00:24]} 28. c3 {[%emt 0:00:05]} b5 {[%emt 0:00:15]} 29. Rhd1 {[%emt 0:00:19]} Kb7 {[%emt 0:02:07]} 30. Rf4 {[%emt 0:00:22]} R8c7 {[%emt 0:00:11]} 31. Rdd4 {[%emt 0:00:13]} Kb6 {[%emt 0:01:36]} 32. Kd2 {[%emt 0:01:06]} a5 {[%emt 0:02:17]} 33. Rf6 {[%emt 0:00:29]} Rc4 {[%emt 0:00:45]} 34. Rdf4 {[%emt 0:02:56]} Rxf4 {[%emt 0:03:09]} 35. Rxf4 {[%emt 0:00:06]} a4 {[%emt 0:03:45]} 36. Kd3 {[%emt 0:01:15]} Kc5 {[%emt 0:01:30]} 37. Rd4 {[%emt 0:01:46]} Rd7 {[%emt 0:00:27]} 38. Rf4 {[%emt 0:01:29]} Kc6 {[%emt 0:00:10]} 39. Rd4 {[%emt 0:01:52]} Kc5 {[%emt 0:00:18]} 1/2-1/2